[Event "Late-Titled-Tuesday-Blitz-June-25-2024"]
[Site "Chess.com"]
[Date "2024.06.25"]
[Round "6"]
[White "Oleg_Papayan"]
[Black "chesspilot01"]
[Result "1-0"]
[WhiteElo "2500"]
[BlackElo "2328"]
[TimeControl "180+1"]
[EndTime "15:06:19 PDT"]
[Termination "Oleg_Papayan won on time"]

1. d4 {[%clk 0:02:43.4]} 1... d5 {[%clk 0:02:59]} 2. Nc3 {[%clk 0:02:43.1]} 2...
Nf6 {[%clk 0:02:55.5]} 3. Bf4 {[%clk 0:02:43.7]} 3... a6 {[%clk 0:02:55.8]} 4.
e3 {[%clk 0:02:43.7]} 4... e6 {[%clk 0:02:54.8]} 5. a3 {[%clk 0:02:41.5]} 5...
Bd6 {[%clk 0:02:54.3]} 6. Nf3 {[%clk 0:02:39.6]} 6... Nc6 {[%clk 0:02:48.2]} 7.
Bd3 {[%clk 0:02:25.1]} 7... Ne7 {[%clk 0:02:39.2]} 8. O-O {[%clk 0:02:21.2]}
8... Bxf4 {[%clk 0:02:35.4]} 9. exf4 {[%clk 0:02:21]} 9... Ng6 {[%clk 0:02:36]}
10. g3 {[%clk 0:02:07.6]} 10... O-O {[%clk 0:02:35]} 11. Ne5 {[%clk 0:02:05.4]}
11... Qd6 {[%clk 0:02:24.5]} 12. b4 {[%clk 0:02:00.7]} 12... a5 {[%clk
0:02:14.9]} 13. b5 {[%clk 0:01:53.5]} 13... c5 {[%clk 0:02:12.9]} 14. bxc6
{[%clk 0:01:50]} 14... bxc6 {[%clk 0:02:13.8]} 15. Na4 {[%clk 0:01:49.4]} 15...
Ba6 {[%clk 0:02:12.4]} 16. Nc5 {[%clk 0:01:47.3]} 16... Bxd3 {[%clk 0:02:09.5]}
17. cxd3 {[%clk 0:01:48.2]} 17... Ne7 {[%clk 0:02:04.5]} 18. Qa4 {[%clk
0:01:40.6]} 18... Rfb8 {[%clk 0:01:58.1]} 19. Rab1 {[%clk 0:01:40.6]} 19... Ne8
{[%clk 0:00:42.6]} 20. Ned7 {[%clk 0:01:19.8]} 20... Rxb1 {[%clk 0:00:30.8]} 21.
Rxb1 {[%clk 0:01:20.7]} 21... Nc7 {[%clk 0:00:23.2]} 22. Rb7 {[%clk 0:01:01.7]}
22... Nb5 {[%clk 0:00:21.2]} 23. Nb6 {[%clk 0:00:48.5]} 23... Re8 {[%clk
0:00:17.2]} 24. Nbd7 {[%clk 0:00:34]} 24... Nf5 {[%clk 0:00:13.3]} 25. Qxa5
{[%clk 0:00:17.6]} 25... Nbxd4 {[%clk 0:00:06.2]} 26. Qc7 {[%clk 0:00:11.5]}
26... Ne2+ {[%clk 0:00:05.1]} 27. Kf1 {[%clk 0:00:10.4]} 27... Nc3 {[%clk
0:00:03.2]} 28. Qxd6 {[%clk 0:00:07.4]} 28... Nxd6 {[%clk 0:00:02.9]} 29. Rb6
{[%clk 0:00:08.3]} 29... Ndb5 {[%clk 0:00:01.6]} 30. a4 {[%clk 0:00:04]} 30...
Nd4 {[%clk 0:00:01.8]} 31. a5 {[%clk 0:00:04.2]} 31... f6 {[%clk 0:00:02.1]} 32.
a6 {[%clk 0:00:03.4]} 32... Ncb5 {[%clk 0:00:02.5]} 33. Rb8 {[%clk 0:00:01.5]}
33... Rxb8 {[%clk 0:00:02.5]} 34. Nxb8 {[%clk 0:00:02.4]} 34... e5 {[%clk
0:00:02.1]} 35. fxe5 {[%clk 0:00:02.1]} 35... fxe5 {[%clk 0:00:02.3]} 36. Nbd7
{[%clk 0:00:02.6]} 36... e4 {[%clk 0:00:02]} 37. dxe4 {[%clk 0:00:03.5]} 37...
dxe4 {[%clk 0:00:02.9]} 38. Ne5 {[%clk 0:00:03.7]} 38... Kf8 {[%clk 0:00:03]}
39. Nb7 {[%clk 0:00:03.6]} 39... Ke7 {[%clk 0:00:03.2]} 40. Na5 {[%clk
0:00:03.9]} 40... Ke6 {[%clk 0:00:03.3]} 41. Nexc6 {[%clk 0:00:04]} 41... Nxc6
{[%clk 0:00:02.7]} 42. Nxc6 {[%clk 0:00:04.9]} 42... Kd6 {[%clk 0:00:03.3]} 43.
a7 {[%clk 0:00:05.8]} 43... Nc7 {[%clk 0:00:03.3]} 44. Na5 {[%clk 0:00:05.1]}
44... Kc5 {[%clk 0:00:02.7]} 45. Nb3+ {[%clk 0:00:04.3]} 45... Kb6 {[%clk
0:00:02.8]} 46. Nd2 {[%clk 0:00:04.6]} 46... Kxa7 {[%clk 0:00:03.3]} 47. Nxe4
{[%clk 0:00:05]} 47... Kb6 {[%clk 0:00:04]} 48. Ke2 {[%clk 0:00:05.8]} 48... Kc6
{[%clk 0:00:04.3]} 49. Ke3 {[%clk 0:00:06.7]} 49... Kd5 {[%clk 0:00:04.6]} 50.
f4 {[%clk 0:00:07.1]} 50... Ne6 {[%clk 0:00:04.4]} 51. Ng5 {[%clk 0:00:06.7]}
51... Nf8 {[%clk 0:00:03.4]} 52. Kf3 {[%clk 0:00:05.7]} 52... h6 {[%clk
0:00:03.4]} 53. Nf7 {[%clk 0:00:05.3]} 53... Ke6 {[%clk 0:00:03.4]} 54. Ne5
{[%clk 0:00:05.8]} 54... Nh7 {[%clk 0:00:02.9]} 55. g4 {[%clk 0:00:04.7]} 55...
Kf6 {[%clk 0:00:03.2]} 56. h4 {[%clk 0:00:04.9]} 56... Nf8 {[%clk 0:00:03.1]}
57. Ke4 {[%clk 0:00:04.8]} 57... Ne6 {[%clk 0:00:02.5]} 58. Nf3 {[%clk
0:00:03.4]} 58... Kf7 {[%clk 0:00:01]} 59. f5 {[%clk 0:00:03.3]} 59... Nf8
{[%clk 0:00:01]} 60. Ne5+ {[%clk 0:00:03.2]} 60... Kf6 {[%clk 0:00:01]} 61. Kf4
{[%clk 0:00:02.8]} 1-0

[Event "Late-Titled-Tuesday-Blitz-June-25-2024"]
[Site "Chess.com"]
[Date "2024.06.25"]
[Round "6"]
[White "VaglioSagan"]
[Black "GelmanAlexander"]
[Result "0-1"]
[WhiteElo "2548"]
[BlackElo "2708"]
[TimeControl "180+1"]
[EndTime "15:06:31 PDT"]
[Termination "GelmanAlexander won by checkmate"]

1. d4 {[%clk 0:02:54.9]} 1... c5 {[%clk 0:02:59.8]} 2. e3 {[%clk 0:02:50.5]}
2... Nf6 {[%clk 0:02:58.8]} 3. Nf3 {[%clk 0:02:50.7]} 3... d6 {[%clk 0:02:59.2]}
4. c3 {[%clk 0:02:43.6]} 4... b6 {[%clk 0:02:53.8]} 5. Nbd2 {[%clk 0:02:43.8]}
5... Bb7 {[%clk 0:02:54.2]} 6. Bd3 {[%clk 0:02:44.3]} 6... Nbd7 {[%clk 0:02:50]}
7. O-O {[%clk 0:02:44.7]} 7... e6 {[%clk 0:02:48.3]} 8. e4 {[%clk 0:02:44.5]}
8... Be7 {[%clk 0:02:48.6]} 9. Qe2 {[%clk 0:02:44.4]} 9... O-O {[%clk
0:02:48.5]} 10. Rd1 {[%clk 0:02:39.2]} 10... cxd4 {[%clk 0:02:48.2]} 11. cxd4
{[%clk 0:02:39.4]} 11... Rc8 {[%clk 0:02:44.7]} 12. Nf1 {[%clk 0:02:33.3]} 12...
Rc7 {[%clk 0:02:44.1]} 13. Bg5 {[%clk 0:02:19.9]} 13... h6 {[%clk 0:02:43.7]}
14. Bd2 {[%clk 0:02:08.7]} 14... Qa8 {[%clk 0:02:41.4]} 15. Ng3 {[%clk 0:02:09]}
15... Rfc8 {[%clk 0:02:39.7]} 16. Bc3 {[%clk 0:02:07.1]} 16... a6 {[%clk
0:02:37.9]} 17. d5 {[%clk 0:01:50.6]} 17... e5 {[%clk 0:02:26.8]} 18. Nf5 {[%clk
0:01:34.7]} 18... Bf8 {[%clk 0:02:26.8]} 19. a4 {[%clk 0:01:33.8]} 19... g6
{[%clk 0:02:23.2]} 20. Ng3 {[%clk 0:01:25.6]} 20... Nc5 {[%clk 0:02:23.2]} 21.
Bc2 {[%clk 0:01:25.6]} 21... h5 {[%clk 0:02:07.7]} 22. Nxe5 {[%clk 0:01:05.6]}
22... dxe5 {[%clk 0:02:03.7]} 23. Bxe5 {[%clk 0:01:06.5]} 23... Bg7 {[%clk
0:01:52.1]} 24. Bxc7 {[%clk 0:01:03.8]} 24... Rxc7 {[%clk 0:01:53]} 25. b4
{[%clk 0:01:00.6]} 25... Ncd7 {[%clk 0:01:50.5]} 26. Bb3 {[%clk 0:00:29.1]}
26... h4 {[%clk 0:01:42.7]} 27. Nf1 {[%clk 0:00:27.2]} 27... h3 {[%clk
0:01:42.4]} 28. Rac1 {[%clk 0:00:15.7]} 28... Rxc1 {[%clk 0:01:36.1]} 29. Rxc1
{[%clk 0:00:16.6]} 29... hxg2 {[%clk 0:01:35.7]} 30. Ng3 {[%clk 0:00:17.3]}
30... Qb8 {[%clk 0:01:29.8]} 31. a5 {[%clk 0:00:13.8]} 31... bxa5 {[%clk
0:01:25.7]} 32. bxa5 {[%clk 0:00:13.9]} 32... Qf4 {[%clk 0:01:25.4]} 33. Rd1
{[%clk 0:00:12.7]} 33... Ne5 {[%clk 0:01:24.1]} 34. Kxg2 {[%clk 0:00:10.5]}
34... Bc8 {[%clk 0:01:22.4]} 35. Qe3 {[%clk 0:00:10.2]} 35... Qg4 {[%clk
0:01:17.4]} 36. f4 {[%clk 0:00:07.9]} 36... Nc4 {[%clk 0:00:45.3]} 37. Qf3
{[%clk 0:00:06.6]} 37... Qh3+ {[%clk 0:00:45.3]} 38. Kg1 {[%clk 0:00:06.6]}
38... Bg4 {[%clk 0:00:45.8]} 39. Qf1 {[%clk 0:00:06.9]} 39... Qxf1+ {[%clk
0:00:38.3]} 40. Rxf1 {[%clk 0:00:07.8]} 40... Nd2 {[%clk 0:00:39]} 41. e5 {[%clk
0:00:05.7]} 41... Nh5 {[%clk 0:00:33.5]} 42. Bc2 {[%clk 0:00:01.8]} 42... Nxf1
{[%clk 0:00:31.1]} 43. Kxf1 {[%clk 0:00:02.7]} 43... Nxf4 {[%clk 0:00:30.3]} 44.
d6 {[%clk 0:00:02.5]} 44... Bxe5 {[%clk 0:00:30.1]} 45. Bb3 {[%clk 0:00:03.2]}
45... Bxd6 {[%clk 0:00:29.3]} 46. Bc4 {[%clk 0:00:03.9]} 46... Bc8 {[%clk
0:00:27.6]} 47. Ne4 {[%clk 0:00:04.5]} 47... Bc7 {[%clk 0:00:26.8]} 48. Nc5
{[%clk 0:00:04.7]} 48... Bxa5 {[%clk 0:00:26.3]} 49. Bxa6 {[%clk 0:00:04.8]}
49... Bxa6+ {[%clk 0:00:26.3]} 50. Nxa6 {[%clk 0:00:05.7]} 50... Nh5 {[%clk
0:00:25.2]} 51. Nc5 {[%clk 0:00:06.1]} 51... Bc7 {[%clk 0:00:25.5]} 52. Kg2
{[%clk 0:00:05.9]} 52... Kg7 {[%clk 0:00:25.2]} 53. Ne4 {[%clk 0:00:04.9]} 53...
f5 {[%clk 0:00:24]} 54. Nc5 {[%clk 0:00:05.3]} 54... Be5 {[%clk 0:00:23.6]} 55.
Nd3 {[%clk 0:00:04.6]} 55... Kf6 {[%clk 0:00:24]} 56. Ne1 {[%clk 0:00:03.5]}
56... Nf4+ {[%clk 0:00:24.4]} 57. Kf3 {[%clk 0:00:03.4]} 57... g5 {[%clk
0:00:24.3]} 58. Kf2 {[%clk 0:00:03]} 58... g4 {[%clk 0:00:24.6]} 59. Kf1 {[%clk
0:00:03.4]} 59... Kg5 {[%clk 0:00:24.1]} 60. Kg1 {[%clk 0:00:03.5]} 60... Bd4+
{[%clk 0:00:22]} 61. Kh1 {[%clk 0:00:04.1]} 61... Kh4 {[%clk 0:00:21.4]} 62. Nc2
{[%clk 0:00:04]} 62... Bf2 {[%clk 0:00:20.7]} 63. Nb4 {[%clk 0:00:03.8]} 63...
Kh3 {[%clk 0:00:18.6]} 64. Nc2 {[%clk 0:00:02.7]} 64... Ne2 {[%clk 0:00:16.6]}
65. Ne3 {[%clk 0:00:02.2]} 65... g3 {[%clk 0:00:16.2]} 66. Ng2 {[%clk
0:00:01.7]} 66... gxh2 {[%clk 0:00:12.5]} 67. Nf4+ {[%clk 0:00:01.6]} 67... Kg4
{[%clk 0:00:13.1]} 68. Ng2 {[%clk 0:00:02.1]} 68... Bg1 {[%clk 0:00:03.4]} 69.
Ne3+ {[%clk 0:00:01.7]} 69... Bxe3 {[%clk 0:00:03.3]} 70. Kxh2 {[%clk
0:00:02.6]} 70... f4 {[%clk 0:00:03.5]} 71. Kg2 {[%clk 0:00:03.5]} 71... f3+
{[%clk 0:00:03.5]} 72. Kf1 {[%clk 0:00:04.4]} 72... Ng3+ {[%clk 0:00:03.3]} 73.
Ke1 {[%clk 0:00:05.3]} 73... f2+ {[%clk 0:00:03.9]} 74. Kd1 {[%clk 0:00:06.2]}
74... f1=Q+ {[%clk 0:00:04.5]} 75. Kc2 {[%clk 0:00:07.1]} 75... Qc4+ {[%clk
0:00:04.7]} 76. Kd1 {[%clk 0:00:07.4]} 76... Qc1# {[%clk 0:00:04.5]} 0-1

[Event "Late-Titled-Tuesday-Blitz-June-25-2024"]
[Site "Chess.com"]
[Date "2024.06.25"]
[Round "6"]
[White "pinelone"]
[Black "zverr1"]
[Result "0-1"]
[WhiteElo "2429"]
[BlackElo "2569"]
[TimeControl "180+1"]
[EndTime "15:06:33 PDT"]
[Termination "zverr1 won by checkmate"]

1. Nf3 {[%clk 0:03:00.9]} 1... g6 {[%clk 0:02:59.8]} 2. e4 {[%clk 0:03:00.2]}
2... c5 {[%clk 0:02:59.3]} 3. d4 {[%clk 0:02:53.2]} 3... cxd4 {[%clk 0:03:00.2]}
4. Qxd4 {[%clk 0:02:51.4]} 4... Nf6 {[%clk 0:03:00.4]} 5. Nc3 {[%clk 0:02:51]}
5... Nc6 {[%clk 0:03:00.6]} 6. Qa4 {[%clk 0:02:50.8]} 6... d6 {[%clk 0:03:00.9]}
7. e5 {[%clk 0:02:51.3]} 7... dxe5 {[%clk 0:03:01.2]} 8. Nxe5 {[%clk 0:02:51.8]}
8... Bd7 {[%clk 0:03:02.1]} 9. Nxd7 {[%clk 0:02:51.1]} 9... Nxd7 {[%clk
0:03:02.6]} 10. Bb5 {[%clk 0:02:48.1]} 10... Bg7 {[%clk 0:03:01.7]} 11. O-O
{[%clk 0:02:46.2]} 11... O-O {[%clk 0:03:00.3]} 12. Bxc6 {[%clk 0:02:44.2]}
12... bxc6 {[%clk 0:03:00.3]} 13. Qh4 {[%clk 0:02:36.4]} 13... Nf6 {[%clk
0:02:52.9]} 14. Bh6 {[%clk 0:02:35.3]} 14... Bxh6 {[%clk 0:02:44.4]} 15. Qxh6
{[%clk 0:02:34.9]} 15... Qb6 {[%clk 0:02:45]} 16. Rab1 {[%clk 0:02:29]} 16...
Rfd8 {[%clk 0:02:40.8]} 17. Qe3 {[%clk 0:02:17.7]} 17... Qxe3 {[%clk 0:02:28.4]}
18. fxe3 {[%clk 0:02:17.7]} 18... Rd2 {[%clk 0:02:27.6]} 19. Rf2 {[%clk
0:02:10.7]} 19... Rad8 {[%clk 0:02:14.7]} 20. h3 {[%clk 0:01:39.7]} 20... Rxf2
{[%clk 0:02:09.6]} 21. Kxf2 {[%clk 0:01:39.3]} 21... Rd2+ {[%clk 0:02:09.5]} 22.
Kf3 {[%clk 0:01:39.8]} 22... Rxc2 {[%clk 0:02:08]} 23. g4 {[%clk 0:01:38.2]}
23... g5 {[%clk 0:01:32.8]} 24. Na4 {[%clk 0:01:37.6]} 24... Nd5 {[%clk
0:01:15.4]} 25. Rd1 {[%clk 0:01:23]} 25... Rh2 {[%clk 0:01:11.4]} 26. Kg3 {[%clk
0:01:14.2]} 26... Re2 {[%clk 0:01:10.7]} 27. Rd3 {[%clk 0:00:59.9]} 27... Rxe3+
{[%clk 0:01:05.8]} 28. Rxe3 {[%clk 0:00:59.5]} 28... Nxe3 {[%clk 0:01:06.7]} 29.
Nc5 {[%clk 0:00:49.3]} 29... Kg7 {[%clk 0:01:00.3]} 30. Kf3 {[%clk 0:00:45]}
30... Nc4 {[%clk 0:00:54.7]} 31. b3 {[%clk 0:00:44]} 31... Nd6 {[%clk
0:00:55.3]} 32. Nd7 {[%clk 0:00:39.7]} 32... f6 {[%clk 0:00:45]} 33. Nb8 {[%clk
0:00:39]} 33... c5 {[%clk 0:00:36.4]} 34. Nc6 {[%clk 0:00:39.3]} 34... Nc8
{[%clk 0:00:26.6]} 35. Ke4 {[%clk 0:00:38.2]} 35... e6 {[%clk 0:00:26.2]} 36.
Nd8 {[%clk 0:00:34.7]} 36... Nd6+ {[%clk 0:00:21.8]} 37. Kd3 {[%clk 0:00:32.6]}
37... e5 {[%clk 0:00:11.4]} 38. Ne6+ {[%clk 0:00:32.8]} 38... Kg6 {[%clk
0:00:11.4]} 39. Nxc5 {[%clk 0:00:32.9]} 39... f5 {[%clk 0:00:11.7]} 40. gxf5+
{[%clk 0:00:32.5]} 40... Kxf5 {[%clk 0:00:12.6]} 41. a4 {[%clk 0:00:23.2]} 41...
h5 {[%clk 0:00:11.8]} 42. Ke3 {[%clk 0:00:23]} 42... g4 {[%clk 0:00:10.5]} 43.
hxg4+ {[%clk 0:00:22.1]} 43... Kxg4 {[%clk 0:00:11.4]} 44. Nd3 {[%clk
0:00:19.5]} 44... Kf5 {[%clk 0:00:06.8]} 45. Nf2 {[%clk 0:00:13.1]} 45... h4
{[%clk 0:00:06.6]} 46. a5 {[%clk 0:00:12.2]} 46... a6 {[%clk 0:00:04]} 47. b4
{[%clk 0:00:12.5]} 47... Nc4+ {[%clk 0:00:04.4]} 48. Kd3 {[%clk 0:00:11.9]}
48... Nd6 {[%clk 0:00:05.1]} 49. Ke3 {[%clk 0:00:12.1]} 49... Nb5 {[%clk
0:00:05.2]} 50. Kd3 {[%clk 0:00:12.2]} 50... Kf4 {[%clk 0:00:05.7]} 51. Ke2
{[%clk 0:00:10.4]} 51... e4 {[%clk 0:00:01.9]} 52. Nh3+ {[%clk 0:00:10.4]} 52...
Kg3 {[%clk 0:00:02.5]} 53. Nf2 {[%clk 0:00:10.5]} 53... Kg2 {[%clk 0:00:02]} 54.
Nxe4 {[%clk 0:00:10.5]} 54... h3 {[%clk 0:00:02.7]} 55. Nf2 {[%clk 0:00:10.2]}
55... h2 {[%clk 0:00:03.1]} 56. Ke1 {[%clk 0:00:07.7]} 56... Nc3 {[%clk
0:00:03]} 57. Nh1 {[%clk 0:00:07.1]} 57... Kxh1 {[%clk 0:00:02.9]} 58. Kf1
{[%clk 0:00:07.8]} 58... Ne4 {[%clk 0:00:01.8]} 59. b5 {[%clk 0:00:06.9]} 59...
axb5 {[%clk 0:00:01.8]} 60. a6 {[%clk 0:00:07.8]} 60... Nd2+ {[%clk 0:00:02]}
61. Kf2 {[%clk 0:00:07.4]} 61... Nc4 {[%clk 0:00:02.9]} 62. a7 {[%clk
0:00:07.2]} 62... Nb6 {[%clk 0:00:03.8]} 63. Kf1 {[%clk 0:00:07.5]} 63... b4
{[%clk 0:00:03.9]} 64. Ke2 {[%clk 0:00:07.9]} 64... Na8 {[%clk 0:00:04.1]} 65.
Kd3 {[%clk 0:00:08.5]} 65... Kg2 {[%clk 0:00:04.4]} 66. Kc4 {[%clk 0:00:09.1]}
66... h1=Q {[%clk 0:00:05.3]} 67. Kxb4 {[%clk 0:00:09.7]} 67... Qa1 {[%clk
0:00:05.4]} 68. Kc5 {[%clk 0:00:10.4]} 68... Qxa7+ {[%clk 0:00:06]} 69. Kc6
{[%clk 0:00:10.7]} 69... Qb6+ {[%clk 0:00:06.1]} 70. Kd5 {[%clk 0:00:10.6]}
70... Nc7+ {[%clk 0:00:05.6]} 71. Kc4 {[%clk 0:00:11.2]} 71... Qb5+ {[%clk
0:00:05.5]} 72. Kd4 {[%clk 0:00:11.3]} 72... Qd5+ {[%clk 0:00:06.2]} 73. Kc3
{[%clk 0:00:11.5]} 73... Qe4 {[%clk 0:00:06.3]} 74. Kd2 {[%clk 0:00:11.7]} 74...
Qf3 {[%clk 0:00:06.2]} 75. Ke1 {[%clk 0:00:12]} 75... Qf2+ {[%clk 0:00:05.5]}
76. Kd1 {[%clk 0:00:12.3]} 76... Kf3 {[%clk 0:00:06.4]} 77. Kc1 {[%clk 0:00:12]}
77... Ke3 {[%clk 0:00:07.3]} 78. Kb1 {[%clk 0:00:12.6]} 78... Kd3 {[%clk
0:00:08.2]} 79. Ka1 {[%clk 0:00:13]} 79... Kc3 {[%clk 0:00:09.1]} 80. Kb1 {[%clk
0:00:13.3]} 80... Qb2# {[%clk 0:00:09.9]} 0-1

[Event "Late-Titled-Tuesday-Blitz-June-25-2024"]
[Site "Chess.com"]
[Date "2024.06.25"]
[Round "6"]
[White "ritanovikova"]
[Black "MathiasWomacka"]
[Result "0-1"]
[WhiteElo "2255"]
[BlackElo "2519"]
[TimeControl "180+1"]
[EndTime "15:06:33 PDT"]
[Termination "MathiasWomacka won by resignation"]

1. e4 {[%clk 0:02:57.5]} 1... c5 {[%clk 0:02:57.8]} 2. Nc3 {[%clk 0:02:56.8]}
2... Nc6 {[%clk 0:02:58]} 3. d3 {[%clk 0:02:56.4]} 3... g6 {[%clk 0:02:57]} 4.
g3 {[%clk 0:02:55.8]} 4... Bg7 {[%clk 0:02:56.9]} 5. Be3 {[%clk 0:02:56.1]} 5...
d6 {[%clk 0:02:54.5]} 6. Bg2 {[%clk 0:02:55.9]} 6... e5 {[%clk 0:02:54]} 7. Qd2
{[%clk 0:02:56.2]} 7... Nge7 {[%clk 0:02:54.4]} 8. Bh6 {[%clk 0:02:55.8]} 8...
O-O {[%clk 0:02:54.3]} 9. h4 {[%clk 0:02:55.6]} 9... Bxh6 {[%clk 0:02:53.8]} 10.
Qxh6 {[%clk 0:02:55.1]} 10... f6 {[%clk 0:02:54.4]} 11. Qd2 {[%clk 0:02:53]}
11... Nd4 {[%clk 0:02:53.5]} 12. Nd1 {[%clk 0:02:51.8]} 12... d5 {[%clk
0:02:50.3]} 13. c3 {[%clk 0:02:51.4]} 13... Ndc6 {[%clk 0:02:49.9]} 14. h5
{[%clk 0:02:48.4]} 14... g5 {[%clk 0:02:43.3]} 15. Ne3 {[%clk 0:02:36.4]} 15...
d4 {[%clk 0:02:34.7]} 16. Nd5 {[%clk 0:02:35.4]} 16... Nxd5 {[%clk 0:02:27.1]}
17. exd5 {[%clk 0:02:36.3]} 17... Ne7 {[%clk 0:02:27]} 18. c4 {[%clk 0:02:32.8]}
18... Nf5 {[%clk 0:02:17.6]} 19. Be4 {[%clk 0:02:27.6]} 19... Nd6 {[%clk
0:02:15.6]} 20. f4 {[%clk 0:02:08.9]} 20... f5 {[%clk 0:01:58.5]} 21. Bg2 {[%clk
0:02:07.5]} 21... e4 {[%clk 0:01:56.9]} 22. O-O-O {[%clk 0:01:48.8]} 22... Bd7
{[%clk 0:01:41.6]} 23. fxg5 {[%clk 0:01:44.7]} 23... e3 {[%clk 0:01:40.9]} 24.
Qe2 {[%clk 0:01:44.1]} 24... Qxg5 {[%clk 0:01:40.4]} 25. Nf3 {[%clk 0:01:42]}
25... Qf6 {[%clk 0:01:22]} 26. Rdg1 {[%clk 0:01:23.6]} 26... b5 {[%clk
0:01:21.2]} 27. g4 {[%clk 0:01:08.9]} 27... fxg4 {[%clk 0:01:19.4]} 28. Nh2
{[%clk 0:01:09]} 28... Qf2 {[%clk 0:01:07.4]} 29. Bf1 {[%clk 0:01:06.6]} 29...
Kh8 {[%clk 0:00:56]} 30. Nxg4 {[%clk 0:01:01.9]} 30... Qxe2 {[%clk 0:00:55.9]}
31. Bxe2 {[%clk 0:01:02]} 31... bxc4 {[%clk 0:00:55.9]} 32. dxc4 {[%clk
0:01:01.4]} 32... Bxg4 {[%clk 0:00:51.5]} 33. Rxg4 {[%clk 0:01:02.3]} 33... Rf2
{[%clk 0:00:51.1]} 34. Re1 {[%clk 0:01:02.8]} 34... Rg8 {[%clk 0:00:47.3]} 35.
Rxg8+ {[%clk 0:01:01.8]} 35... Kxg8 {[%clk 0:00:47.2]} 36. Kc2 {[%clk
0:01:01.7]} 36... Kg7 {[%clk 0:00:42.6]} 37. Kd3 {[%clk 0:00:58.3]} 37... Kf6
{[%clk 0:00:41.6]} 38. Rf1 {[%clk 0:00:57.5]} 38... Rxf1 {[%clk 0:00:40.2]} 39.
Bxf1 {[%clk 0:00:57.7]} 39... Nf7 {[%clk 0:00:36.4]} 40. a3 {[%clk 0:00:54]}
40... a5 {[%clk 0:00:32.5]} 41. b4 {[%clk 0:00:49.3]} 41... axb4 {[%clk
0:00:32.3]} 42. axb4 {[%clk 0:00:49.5]} 42... Ne5+ {[%clk 0:00:31]} 43. Ke4
{[%clk 0:00:45.5]} 43... cxb4 {[%clk 0:00:29.9]} 44. Kxd4 {[%clk 0:00:43.8]}
44... b3 {[%clk 0:00:29.3]} 45. Kc3 {[%clk 0:00:43.5]} 45... Nf3 {[%clk
0:00:21.7]} 46. Be2 {[%clk 0:00:41.8]} 46... Ng1 {[%clk 0:00:20.6]} 47. Bg4
{[%clk 0:00:31.1]} 47... Ke5 {[%clk 0:00:18.6]} 48. Kxb3 {[%clk 0:00:28.5]}
48... e2 {[%clk 0:00:15.9]} 49. Bxe2 {[%clk 0:00:28.6]} 49... Nxe2 {[%clk
0:00:16.8]} 50. Kc2 {[%clk 0:00:26.4]} 50... Ng3 {[%clk 0:00:14.6]} 51. h6
{[%clk 0:00:26.5]} 51... Nf5 {[%clk 0:00:14.1]} 52. Kd3 {[%clk 0:00:25.3]} 52...
Nxh6 {[%clk 0:00:13.9]} 53. Ke3 {[%clk 0:00:24.1]} 53... Nf7 {[%clk 0:00:13.2]}
54. Kf3 {[%clk 0:00:23.4]} 54... Kd4 {[%clk 0:00:13.3]} 55. Kg4 {[%clk
0:00:18.1]} 55... Kxc4 {[%clk 0:00:13.3]} 56. Kf5 {[%clk 0:00:19]} 56... Kxd5
{[%clk 0:00:12.7]} 57. Kf6 {[%clk 0:00:19.3]} 57... h6 {[%clk 0:00:11.8]} 58.
Kf5 {[%clk 0:00:18.8]} 58... Kd6 {[%clk 0:00:11.7]} 59. Kg4 {[%clk 0:00:19.1]}
59... Ke6 {[%clk 0:00:11.7]} 60. Kh5 {[%clk 0:00:18]} 60... Kf6 {[%clk 0:00:12]}
61. Kh4 {[%clk 0:00:18.1]} 61... Kg6 {[%clk 0:00:12.6]} 62. Kh3 {[%clk
0:00:18.3]} 62... h5 {[%clk 0:00:13.5]} 63. Kh2 {[%clk 0:00:18.6]} 63... Kg5
{[%clk 0:00:13.7]} 64. Kh3 {[%clk 0:00:19]} 64... Ne5 {[%clk 0:00:12.8]} 65. Kh2
{[%clk 0:00:19.9]} 65... Kg4 {[%clk 0:00:13.2]} 66. Kh1 {[%clk 0:00:20]} 66...
h4 {[%clk 0:00:13.4]} 67. Kh2 {[%clk 0:00:20.3]} 67... h3 {[%clk 0:00:13.1]} 68.
Kh1 {[%clk 0:00:20.7]} 68... Kg3 {[%clk 0:00:13.4]} 69. Kg1 {[%clk 0:00:20.2]}
69... Ng4 {[%clk 0:00:14.3]} 70. Kh1 {[%clk 0:00:19.1]} 70... Nf2+ {[%clk
0:00:14]} 71. Kg1 {[%clk 0:00:19.1]} 71... h2+ {[%clk 0:00:14.9]} 0-1